bitfinex/quotes_SOLUSD_20240915
["timestamp","ask_amount","ask_price","bid_price","bid_amount"]
[1726380994325,7.2636,137.68,137.64,23.776884]
[1726380996098,7.2636,137.68,137.63,11.39286714]
[1726381003399,22.9605,137.69,137.64,25.35531843]
[1726381003904,15.6977,137.69,137.65,11.39286714]
[1726381004919,15.6977,137.69,137.66,36.74799175]
[1726381005221,15.6977,137.69,137.67,11.39286714]
[1726381006424,22.1290426,137.72,137.68,23.776884]
[1726381006604,22.1290426,137.72,137.68,35.16975114]
[1726381007104,16.0422426,137.72,137.68,35.16975114]
[1726381009805,16.0422426,137.72,137.68,0.12549]
[1726381013028,7.2617,137.71,137.67,11.39286714]
[1726381013231,7.2617,137.71,137.64,20.0]
[1726381013413,7.2617,137.71,137.65,11.39286714]
[1726381014604,7.2617,137.71,137.66,23.902374]
[1726381017725,7.2617,137.71,137.66,11.51835714]
[1726381017928,7.2617,137.71,137.67,23.776884]
[1726381018511,23.3036426,137.72,137.67,23.776884]
[1726381019419,23.3036426,137.72,137.67,35.16975114]
[1726381020408,16.0422426,137.72,137.67,11.39286714]
[1726381020611,16.0422426,137.72,137.64,20.0]
[1726381020817,16.0422426,137.72,137.65,0.12549]
[1726381021426,7.2623,137.7,137.65,0.12549]
[1726381021626,7.2623,137.7,137.65,0.37647]
[1726381021844,7.2623,137.7,137.65,24.153354]
[1726381024722,7.2623,137.7,137.65,24.027864]
[1726381025641,7.2623,137.7,137.65,23.902374]
[1726381029623,7.2628,137.69,137.65,23.902374]
[1726381030753,7.2628,137.69,137.65,0.12549]
[1726381030923,7.2628,137.69,137.64,24.027864]
[1726381033124,7.2628,137.69,137.64,35.42073114]
[1726381034049,7.2628,137.69,137.64,35.29524114]
[1726381034743,7.2628,137.69,137.64,23.902374]
[1726381034937,7.2628,137.69,137.64,35.29524114]
[1726381042552,7.2628,137.69,137.65,11.39286714]
[1726381044453,7.2628,137.69,137.64,23.902374]
[1726381044644,7.2628,137.69,137.64,35.29524114]
[1726381051467,7.2628,137.69,137.64,23.902374]
[1726381051641,23.186,137.69,137.64,23.902374]
[1726381053748,23.186,137.69,137.61,11.51835714]
[1726381053749,7.2637,137.67,137.61,11.51835714]
[1726381054055,7.2637,137.67,137.62,43.902374]
[1726381054663,7.2644,137.66,137.62,23.776884]
[1726381056460,7.2644,137.66,137.63,5.77634874]
[1726381056764,7.2644,137.66,137.62,23.776884]
[1726381056966,6.5906,137.69,137.63,5.77634874]
[1726381057269,7.2653,137.64,137.59,11.39286714]
[1726381057562,23.1881,137.65,137.6,5.77781543]
[1726381057764,23.1881,137.65,137.59,11.39286714]
[1726381057956,23.1881,137.65,137.6,5.77755479]
[1726381058154,23.1881,137.65,137.61,5.77755479]
[1726381058473,23.1881,137.65,137.61,12.84604985]
[1726381058474,15.9232,137.65,137.61,12.84604985]
[1726381058661,15.9232,137.65,137.63,23.776884]
[1726381058870,15.9232,137.65,137.62,11.39286714]
[1726381065573,15.9232,137.65,137.61,35.42073114]
[1726381065762,15.9232,137.65,137.62,5.77650456]
[1726381065971,15.9232,137.65,137.62,23.902374]
[1726381067445,15.9232,137.65,137.62,25.35540476]
[1726381067645,15.9232,137.65,137.62,23.902374]
[1726381074155,15.9232,137.65,137.62,25.3554152]
[1726381074474,7.2638,137.67,137.63,11.51835714]
[1726381074868,7.2638,137.67,137.64,23.776884]
[1726381076877,7.2638,137.67,137.63,23.776884]
[1726381078493,7.2642,137.66,137.63,23.776884]
[1726381084088,7.2639,137.67,137.63,36.62275937]
[1726381085182,7.2639,137.67,137.64,5.77133322]
[1726381085380,7.2639,137.67,137.63,36.62275937]
[1726381085584,7.2639,137.67,137.64,5.77133539]
[1726381085886,7.2639,137.67,137.63,36.62275937]
[1726381086087,7.2639,137.67,137.64,5.77050932]
[1726381086285,7.2639,137.67,137.63,36.62275937]
[1726381086576,7.2639,137.67,137.64,5.77050771]
[1726381086783,15.8441,137.69,137.65,23.776884]
[1726381087277,7.2636,137.68,137.64,11.39286714]
[1726381094287,7.2636,137.68,137.65,23.776884]
[1726381103680,7.2636,137.68,137.65,25.22969351]
[1726381108513,7.2636,137.68,137.65,36.62256065]
[1726381108697,7.2636,137.68,137.65,35.16975114]
[1726381108993,15.8441,137.69,137.67,23.776884]
[1726381111089,6.6248426,137.72,137.67,35.16975114]
[1726381111090,7.2616,137.71,137.67,35.16975114]
[1726381120699,7.2616,137.71,137.68,0.12549]
[1726381127415,22.7817426,137.72,137.68,0.12549]
[1726381132129,22.7817426,137.72,137.68,1.57791546]
[1726381132423,22.7817426,137.72,137.68,0.12549]
[1726381134526,22.7817426,137.72,137.68,1.57789404]
[1726381134828,22.7817426,137.72,137.68,0.12549]
[1726381151217,7.2616,137.71,137.68,0.12549]
[1726381151428,7.2616,137.71,137.67,35.16975114]
[1726381151628,7.2622,137.7,137.65,11.39286714]
[1726381151937,7.2622,137.7,137.65,20.0]
[1726381152130,7.2628,137.69,137.65,20.0]
[1726381152728,7.2628,137.69,137.66,23.776884]
[1726381154745,7.2622,137.7,137.66,23.776884]
[1726381155125,7.2622,137.7,137.66,25.22956744]
[1726381156439,7.2617,137.71,137.66,36.62243458]
[1726381157849,7.2617,137.71,137.68,23.776884]
[1726381165862,7.5173426,137.72,137.68,23.776884]
[1726381179149,7.5173426,137.72,137.68,25.22931285]
[1726381186380,0.2561426,137.72,137.69,13.09627215]
[1726381186560,0.2561426,137.72,137.7,35.16975114]
[1726381187178,0.2561426,137.72,137.7,23.776884]
[1726381200782,7.5173426,137.72,137.7,23.776884]
[1726381201101,7.2623,137.7,137.65,22.8197]
[1726381201470,0.2561426,137.72,137.65,22.8197]
[1726381201471,7.2627,137.69,137.65,22.8197]
[1726381201671,7.2633,137.68,137.62,15.2164]
[1726381201866,7.2633,137.68,137.63,3.90864254]
[1726381202072,7.2633,137.68,137.64,3.90864254]
[1726381202274,7.2633,137.68,137.63,11.39286714]
[1726381202482,7.2633,137.68,137.64,3.90907322]
[1726381202680,7.2633,137.68,137.63,11.39286714]
[1726381202891,7.2633,137.68,137.64,3.90791082]
[1726381203199,7.2633,137.68,137.65,23.776884]
[1726381206794,7.2633,137.68,137.66,5.76240202]
[1726381207007,7.2633,137.68,137.67,5.76240202]
[1726381207771,7.2633,137.68,137.65,23.776884]
[1726381207968,7.2633,137.68,137.66,5.76220555]
[1726381208277,7.2633,137.68,137.67,5.76229982]
[1726381208489,7.2633,137.68,137.67,5.76228566]
[1726381210702,7.2633,137.68,137.65,23.776884]
[1726381210903,7.2633,137.68,137.66,5.76379147]
[1726381211196,7.2633,137.68,137.65,23.776884]
[1726381211400,7.2633,137.68,137.66,5.76388385]
[1726381211603,7.2633,137.68,137.65,23.776884]
[1726381211778,7.2633,137.68,137.66,5.76371799]
[1726381211979,7.2633,137.68,137.65,23.776884]
[1726381212181,7.2633,137.68,137.66,5.76371628]
[1726381212381,7.2633,137.68,137.65,23.776884]
[1726381212583,7.2633,137.68,137.66,5.76346498]
[1726381212881,7.2633,137.68,137.65,23.776884]
[1726381213081,7.2633,137.68,137.66,5.76333632]
[1726381213280,7.2633,137.68,137.65,23.776884]
[1726381213478,7.2633,137.68,137.66,5.76333895]
[1726381213690,7.2633,137.68,137.65,23.776884]
[1726381213887,7.2633,137.68,137.66,5.76331577]
[1726381214095,7.2633,137.68,137.65,23.776884]
[1726381214403,7.2633,137.68,137.66,5.76367863]
[1726381214700,7.2633,137.68,137.65,23.776884]
[1726381214876,7.2633,137.68,137.66,5.76342848]
[1726381215076,7.2633,137.68,137.65,23.776884]
[1726381215371,7.2633,137.68,137.66,5.76331577]
[1726381215575,7.2633,137.68,137.65,23.776884]
[1726381215790,7.2633,137.68,137.66,5.76356474]
[1726381216007,7.2633,137.68,137.65,23.776884]
[1726381216190,7.2633,137.68,137.66,5.76356474]
[1726381216377,7.2633,137.68,137.65,23.776884]
[1726381216577,7.2633,137.68,137.66,5.76346878]
[1726381216799,7.2633,137.68,137.65,23.776884]
[1726381217003,7.2633,137.68,137.66,5.76334254]
[1726381217302,7.2633,137.68,137.65,23.776884]
[1726381223782,7.2628,137.69,137.65,23.776884]
[1726381227911,7.2628,137.69,137.64,23.902374]
[1726381228407,7.2633,137.68,137.64,23.902374]
[1726381235212,7.2628,137.69,137.65,0.25098]
[1726381235386,7.2628,137.69,137.66,23.776884]
[1726381235806,7.2622,137.7,137.66,23.776884]
[1726381236003,7.2622,137.7,137.66,35.16975114]
[1726381237807,7.2618,137.71,137.67,0.25098]
[1726381239692,7.2618,137.71,137.66,35.16975114]
[1726381246422,7.2623,137.7,137.66,35.16975114]
[1726381246628,7.2623,137.7,137.66,23.776884]
[1726381257826,7.2623,137.7,137.65,11.51835714]
[1726381257827,7.2623,137.7,137.65,23.902374]
[1726381258029,7.2623,137.7,137.65,35.29524114]
[1726381262434,7.2618,137.71,137.66,0.12549]
[1726381262637,7.2618,137.71,137.67,23.776884]
[1726381262932,7.2618,137.71,137.67,35.16975114]
[1726381264124,7.5172426,137.72,137.68,1.45253543]
[1726381264539,7.5172426,137.72,137.67,35.16975114]
[1726381266759,0.2561426,137.72,137.69,35.16975114]
[1726381266959,0.2561426,137.72,137.69,23.776884]
[1726381270462,0.2561426,137.72,137.7,1.45230106]
[1726381270847,0.2561426,137.72,137.7,11.39286714]
[1726381271065,0.2561426,137.72,137.71,23.776884]
[1726381271849,0.2561426,137.72,137.7,12.84513104]
[1726381272252,0.2561426,137.72,137.7,11.39286714]
[1726381272455,0.2561426,137.72,137.71,25.22907734]
[1726381273270,0.2561426,137.72,137.71,25.48005734]
[1726381274150,0.2561426,137.72,137.71,24.027864]
[1726381276549,0.2561426,137.72,137.7,24.027864]
[1726381280171,0.2561426,137.72,137.71,25.47992707]
[1726381280360,0.2561426,137.72,137.71,24.027864]
[1726381282373,0.2561426,137.72,137.71,0.12549]
[1726381290568,0.2561426,137.72,137.7,23.902374]
[1726381301464,0.2561426,137.72,137.71,25.22900102]
[1726381301691,0.2561426,137.72,137.71,23.776884]
[1726381301975,0.2561426,137.72,137.7,24.027864]
[1726381326891,0.2561426,137.72,137.7,25.47999618]
[1726381327288,0.2561426,137.72,137.7,24.027864]
[1726381338221,0.2561426,137.72,137.71,5.76089026]
[1726381338408,0.2561426,137.72,137.71,29.78875426]
[1726381340219,0.2561426,137.72,137.71,5.76089026]
[1726381342419,0.2561426,137.72,137.68,44.027864]
[1726381342599,0.2561426,137.72,137.69,5.76354389]
[1726381342800,0.2561426,137.72,137.68,44.027864]
[1726381342801,0.2561426,137.72,137.7,5.76354389]
[1726381343117,0.2561426,137.72,137.68,44.027864]
[1726381343317,0.2561426,137.72,137.69,5.76354389]
[1726381343619,0.2561426,137.72,137.7,5.76354389]
[1726381343819,0.2561426,137.72,137.68,44.027864]
[1726381346114,0.2561426,137.72,137.68,55.42073114]
[1726381364837,0.2561426,137.72,137.69,12.84521444]
[1726381365023,0.2561426,137.72,137.7,23.776884]
[1726381365833,0.2561426,137.72,137.71,25.22906437]
[1726381366715,0.2561426,137.72,137.7,23.776884]
[1726381368339,0.2561426,137.72,137.71,0.25098]
[1726381368544,0.2561426,137.72,137.71,35.54622114]
[1726381370048,0.2561426,137.72,137.71,35.42073114]
[1726381370539,0.2561426,137.72,137.71,24.027864]
[1726381385048,0.2561426,137.72,137.71,23.776884]
[1726381387863,0.2561426,137.72,137.7,24.027864]
[1726381399571,0.2561426,137.72,137.68,20.0]
[1726381399776,0.2561426,137.72,137.64,20.0]
[1726381399958,0.2561426,137.72,137.66,31.39286714]
[1726381400849,0.2561426,137.72,137.68,20.12549]
[1726381401052,0.2561426,137.72,137.69,23.776884]
[1726381401245,0.2561426,137.72,137.69,25.22920718]
[1726381402650,0.2561426,137.72,137.69,25.2291235]
[1726381403676,0.2561426,137.72,137.69,23.776884]
[1726381403872,0.2561426,137.72,137.69,25.22914477]
[1726381404077,0.2561426,137.72,137.7,5.76063947]
[1726381404377,0.2561426,137.72,137.71,5.76063947]
[1726381407883,0.2561426,137.72,137.71,5.7607447]
[1726381409959,0.2561426,137.72,137.69,35.16975114]
[1726381410162,0.2561426,137.72,137.7,5.76068222]
[1726381410479,0.2561426,137.72,137.71,5.76068222]
[1726381410776,0.2561426,137.72,137.69,23.776884]
[1726381410953,0.2561426,137.72,137.71,5.7607447]
[1726381414285,0.2561426,137.72,137.71,5.76081195]
[1726381417812,0.2561426,137.72,137.71,5.76080522]
[1726381418182,0.2561426,137.72,137.68,23.902374]
[1726381418377,0.2561426,137.72,137.69,5.76081136]
[1726381418572,0.2561426,137.72,137.7,5.76081136]
[1726381418795,0.2561426,137.72,137.71,5.76081136]
[1726381422673,7.5172426,137.72,137.68,23.776884]
[1726381422878,7.5172426,137.72,137.69,5.76314984]
[1726381423075,7.5172426,137.72,137.7,5.76314984]
[1726381423386,7.5172426,137.72,137.67,23.902374]
[1726381423587,7.5172426,137.72,137.68,5.76315539]
[1726381423879,7.5172426,137.72,137.69,5.76315539]
[1726381424190,7.5172426,137.72,137.67,23.902374]
[1726381424386,7.5172426,137.72,137.68,5.76386017]
[1726381424565,7.5172426,137.72,137.69,5.76386017]
[1726381424766,7.5172426,137.72,137.67,23.902374]
[1726381424969,7.5172426,137.72,137.68,5.76391121]
[1726381425175,7.5172426,137.72,137.69,5.76391121]
[1726381425486,7.5172426,137.72,137.67,23.902374]
[1726381425684,7.5172426,137.72,137.68,5.7629751]
[1726381425887,7.5172426,137.72,137.69,5.7629751]
[1726381426067,7.5172426,137.72,137.67,23.776884]
[1726381426281,7.5172426,137.72,137.68,5.76297858]
[1726381426481,7.5172426,137.72,137.69,5.76297858]
[1726381426700,7.5172426,137.72,137.67,23.776884]
[1726381427000,7.5172426,137.72,137.68,5.76295536]
[1726381427297,7.5172426,137.72,137.69,5.76295536]
[1726381427461,7.5172426,137.72,137.67,23.776884]
[1726381427661,7.5172426,137.72,137.68,5.76295536]
[1726381427879,7.5172426,137.72,137.69,5.76295536]
[1726381428081,7.5172426,137.72,137.67,23.776884]
[1726381428389,7.5172426,137.72,137.68,5.76295536]
[1726381428685,7.5172426,137.72,137.69,5.76295536]
[1726381428865,7.5172426,137.72,137.67,23.776884]
[1726381429067,7.5172426,137.72,137.68,5.76295302]
[1726381429265,7.5172426,137.72,137.69,5.76295302]
[1726381429465,7.5172426,137.72,137.67,23.776884]
[1726381429675,7.5172426,137.72,137.68,5.76295536]
[1726381429879,7.5172426,137.72,137.69,5.76295536]
[1726381430082,7.5172426,137.72,137.67,23.776884]
[1726381430288,7.5172426,137.72,137.68,5.76301571]
[1726381430485,7.5172426,137.72,137.69,5.76301571]
[1726381430695,7.5172426,137.72,137.67,23.776884]
[1726381430993,7.5172426,137.72,137.68,5.76295536]
[1726381431161,7.5172426,137.72,137.69,5.76295536]
[1726381431362,7.5172426,137.72,137.67,23.776884]
[1726381431587,7.5172426,137.72,137.68,5.76295536]
[1726381431788,7.5172426,137.72,137.69,5.76295536]
[1726381431965,7.5172426,137.72,137.67,23.776884]
[1726381432171,7.5172426,137.72,137.68,5.76295536]
[1726381432372,7.5172426,137.72,137.69,5.76295536]
[1726381432573,7.5172426,137.72,137.67,23.776884]
[1726381432766,7.5172426,137.72,137.68,5.76296167]
[1726381432963,7.5172426,137.72,137.69,5.76296167]
[1726381433194,7.5172426,137.72,137.67,23.776884]
[1726381441191,0.2561426,137.72,137.67,23.776884]
[1726381441495,0.2561426,137.72,137.68,0.12549]
[1726381442770,0.2561426,137.72,137.68,13.09623691]
[1726381442974,0.2561426,137.72,137.69,35.16975114]
[1726381447421,0.2561426,137.72,137.69,23.776884]
[1726381447910,0.2561426,137.72,137.68,24.027864]
[1726381451506,0.2561426,137.72,137.67,23.776884]
[1726381452378,7.5175426,137.72,137.67,23.776884]
[1726381453199,0.2561426,137.72,137.68,0.12549]
[1726381456314,7.5172426,137.72,137.68,0.12549]
[1726381463813,7.2617,137.71,137.67,23.776884]
[1726381464116,7.2617,137.71,137.66,43.902374]
[1726381464414,7.2617,137.71,137.68,23.776884]
[1726381464826,7.2617,137.71,137.67,23.776884]
[1726381465716,7.5173426,137.72,137.67,23.776884]
[1726381465892,7.5173426,137.72,137.67,36.62216677]
[1726381466213,7.5173426,137.72,137.68,11.51835714]
[1726381466389,7.5173426,137.72,137.69,23.776884]
[1726381466587,0.2561426,137.72,137.69,23.776884]
[1726381481933,7.5172426,137.72,137.68,24.027864]
[1726381502922,7.5172426,137.72,137.68,0.25098]
[1726381514452,0.2561426,137.72,137.68,0.25098]
[1726381514641,0.2561426,137.72,137.69,23.776884]
[1726381529282,0.2561426,137.72,137.71,24.027864]
[1726381529486,0.2561426,137.72,137.71,24.153354]
[1726381529781,0.2561426,137.72,137.71,35.54622114]
[1726381529985,0.2561426,137.72,137.71,24.153354]
[1726381530771,0.2561426,137.72,137.71,24.027864]
[1726381539993,0.2561426,137.72,137.71,35.42073114]
[1726381547194,0.2561426,137.72,137.71,24.027864]
[1726381550476,0.2561426,137.72,137.71,25.60536461]
[1726381550684,0.2561426,137.72,137.71,36.99823175]
[1726381552205,0.2561426,137.72,137.71,35.54622114]
[1726381553493,0.2561426,137.72,137.71,41.30079904]
[1726381556405,0.2561426,137.72,137.71,35.54622114]
[1726381556613,0.2561426,137.72,137.71,41.2994854]
[1726381559793,0.2561426,137.72,137.71,41.17458629]
[1726381559995,0.2561426,137.72,137.71,17.14672229]
[1726381560323,0.2561426,137.72,137.66,6.382]
[1726381560484,0.2561426,137.72,137.67,47.14865876]
[1726381560687,0.2561426,137.72,137.68,5.75579162]
[1726381560911,0.2561426,137.72,137.69,5.75579162]
[1726381561211,0.2561426,137.72,137.7,5.75579162]
[1726381561513,0.2561426,137.72,137.68,20.0]
[1726381561705,0.2561426,137.72,137.69,29.78420621]
[1726381561911,0.2561426,137.72,137.7,5.75634221]
[1726381562095,0.2561426,137.72,137.69,24.027864]
[1726381563513,0.2561426,137.72,137.7,5.75628322]
[1726381563694,0.2561426,137.72,137.69,24.027864]
[1726381563889,0.2561426,137.72,137.7,5.75621932]
[1726381564096,0.2561426,137.72,137.69,24.027864]
[1726381564302,0.2561426,137.72,137.7,5.75596402]
[1726381564508,0.2561426,137.72,137.69,24.027864]
[1726381564696,0.2561426,137.72,137.7,5.75621932]
[1726381564910,0.2561426,137.72,137.69,24.027864]
[1726381565090,0.2561426,137.72,137.7,5.75621932]
[1726381565291,0.2561426,137.72,137.69,35.42073114]
[1726381565608,0.2561426,137.72,137.71,35.29524114]
[1726381565808,0.2561426,137.72,137.71,29.65797445]
[1726381567037,0.2561426,137.72,137.71,29.53248445]
[1726381568317,0.2561426,137.72,137.69,23.776884]
[1726381568521,0.2561426,137.72,137.7,5.75653037]
[1726381568723,0.2561426,137.72,137.69,23.776884]
[1726381569029,0.2561426,137.72,137.7,5.75666494]
[1726381569214,0.2561426,137.72,137.69,23.776884]
[1726381569415,0.2561426,137.72,137.7,5.75658476]
[1726381569597,0.2561426,137.72,137.69,23.776884]
[1726381569801,0.2561426,137.72,137.7,5.75660578]
[1726381570015,0.2561426,137.72,137.69,23.776884]
[1726381570305,0.2561426,137.72,137.7,5.75660186]
[1726381570508,0.2561426,137.72,137.69,23.776884]
[1726381580807,0.2561426,137.72,137.69,35.16975114]
[1726381582025,0.2561426,137.72,137.7,11.39286714]
[1726381582326,0.2561426,137.72,137.71,23.776884]
[1726381584109,0.2561426,137.72,137.7,35.16975114]
[1726381584719,0.2561426,137.72,137.71,25.22901421]
[1726381585312,0.2561426,137.72,137.71,23.776884]
[1726381585621,0.2561426,137.72,137.71,25.22900694]
[1726381588710,0.2561426,137.72,137.71,23.776884]
[1726381591333,0.2561426,137.72,137.7,11.64384714]
[1726381591515,0.2561426,137.72,137.7,13.09597018]
[1726381591719,0.2561426,137.72,137.71,23.776884]
[1726381592620,0.2561426,137.72,137.71,25.22900681]
[1726381593624,0.2561426,137.72,137.7,24.027864]
[1726381599948,0.2561426,137.72,137.7,0.25098]
[1726381615258,7.2617,137.71,137.65,20.0]
[1726381615551,7.2617,137.71,137.66,11.39286714]
[1726381616052,7.2617,137.71,137.67,20.0]
[1726381616845,7.2617,137.71,137.68,23.776884]
[1726381617349,7.2617,137.71,137.67,23.776884]
[1726381617658,7.2623,137.7,137.66,11.39286714]
[1726381617836,7.2623,137.7,137.63,6.2366]
[1726381618150,7.2623,137.7,137.64,11.51835714]
[1726381618725,7.2623,137.7,137.65,23.776884]
[1726381618935,7.2623,137.7,137.66,0.12549]
[1726381626752,23.1168,137.7,137.65,23.902374]
[1726381630667,23.1168,137.7,137.67,23.776884]
[1726381634273,23.1168,137.7,137.65,20.0]
[1726381634567,23.1168,137.7,137.66,5.76910083]
[1726381634753,23.1168,137.7,137.67,5.76910083]
[1726381635051,23.1168,137.7,137.66,23.776884]
[1726381635252,23.1168,137.7,137.67,5.76909533]
[1726381635468,23.1168,137.7,137.66,23.776884]
[1726381635671,23.1168,137.7,137.67,5.76908983]
[1726381635971,23.1168,137.7,137.66,23.776884]
[1726381636162,23.1168,137.7,137.67,5.76909416]
[1726381636367,23.1168,137.7,137.66,23.776884]
[1726381636545,23.1168,137.7,137.67,5.76909533]
[1726381636746,23.1168,137.7,137.66,23.776884]
[1726381636969,23.1168,137.7,137.67,5.76908983]
[1726381637150,23.1168,137.7,137.66,23.776884]
[1726381637471,23.1168,137.7,137.67,5.76909453]
[1726381637681,23.1168,137.7,137.66,23.776884]
[1726381637966,23.1168,137.7,137.67,5.7690957]
[1726381638177,23.1168,137.7,137.66,23.776884]
[1726381638364,23.1168,137.7,137.67,5.76900293]
[1726381638569,23.1168,137.7,137.66,23.776884]
[1726381638753,23.1168,137.7,137.67,5.76900176]
[1726381638953,23.1168,137.7,137.66,23.776884]
[1726381639153,23.1168,137.7,137.67,5.76910003]
[1726381639445,23.1168,137.7,137.66,23.776884]
[1726381639643,23.1168,137.7,137.67,5.76910003]
[1726381639865,23.1168,137.7,137.66,23.776884]
[1726381640868,23.1168,137.7,137.67,5.76910003]
[1726381641055,23.1168,137.7,137.66,23.776884]
[1726381641256,23.1168,137.7,137.67,5.76910003]
[1726381641463,23.1168,137.7,137.66,23.776884]
[1726381641673,15.8545,137.7,137.67,5.76911739]
[1726381641979,15.8545,137.7,137.66,23.776884]
[1726381642176,15.8545,137.7,137.67,5.76924791]
[1726381642379,15.8545,137.7,137.66,23.776884]
[1726381642557,15.8545,137.7,137.67,5.76922351]
[1726381642875,15.8545,137.7,137.66,23.776884]
[1726381643077,15.8545,137.7,137.67,5.76909407]
[1726381643277,15.8545,137.7,137.66,25.22948358]
[1726381647071,15.8545,137.7,137.66,36.62235072]
[1726381653087,15.8545,137.7,137.67,0.25098]
[1726381671985,15.8545,137.7,137.66,23.776884]
[1726381681691,15.8545,137.7,137.66,25.22949924]
[1726381682389,15.8545,137.7,137.66,36.62236638]
[1726381682912,15.8545,137.7,137.67,3.91413688]
[1726381683213,15.8545,137.7,137.66,36.62236638]
[1726381687100,15.8545,137.7,137.67,3.91396474]
[1726381687301,15.8545,137.7,137.66,36.62236638]
[1726381689217,15.8545,137.7,137.66,25.22949924]
[1726381690120,15.8545,137.7,137.67,3.91422923]
[1726381690295,15.8545,137.7,137.66,25.22949924]
[1726381691420,15.8545,137.7,137.67,3.91422674]
[1726381691619,15.8545,137.7,137.66,25.22949924]
[1726381691826,15.8545,137.7,137.67,3.91424038]
[1726381692123,15.8545,137.7,137.66,23.776884]
[1726381692298,15.8545,137.7,137.67,3.91444355]
[1726381692621,15.8545,137.7,137.66,23.776884]
[1726381692822,15.8545,137.7,137.67,3.9148463]
[1726381693119,15.8545,137.7,137.66,23.776884]
[1726381693517,15.8545,137.7,137.67,3.91625228]
[1726381693715,15.8545,137.7,137.66,23.776884]
[1726381700116,15.8545,137.7,137.67,3.92052612]
[1726381700318,15.8545,137.7,137.66,23.776884]
[1726381700612,15.8545,137.7,137.67,3.92054201]
[1726381700820,15.8545,137.7,137.66,23.776884]
[1726381701201,15.8545,137.7,137.67,3.92045725]
[1726381701403,15.8545,137.7,137.66,23.776884]
[1726381703435,15.8545,137.7,137.67,5.77941386]
[1726381703632,15.8545,137.7,137.68,5.77941386]
[1726381703931,15.8545,137.7,137.69,5.77941386]
[1726381704832,15.8545,137.7,137.69,5.77937393]
[1726381708439,15.8545,137.7,137.66,23.776884]
[1726381708617,15.8545,137.7,137.69,5.77976376]
[1726381708816,23.1166,137.7,137.69,5.77976376]
[1726381712320,7.2629,137.69,137.65,23.776884]
[1726381712526,7.2629,137.69,137.66,5.78213673]
[1726381712714,7.2629,137.69,137.67,5.78213673]
[1726381713035,7.2629,137.69,137.65,23.776884]
[1726381713339,7.2629,137.69,137.66,5.78216931]
[1726381713642,7.2629,137.69,137.67,5.78216931]
[1726381713814,7.2629,137.69,137.65,23.776884]
[1726381714016,7.2629,137.69,137.66,5.78256335]
[1726381714216,7.2629,137.69,137.67,5.78256335]
[1726381714417,7.2629,137.69,137.65,23.776884]
[1726381714643,7.2629,137.69,137.66,5.78285231]
[1726381714945,7.2629,137.69,137.65,23.776884]
[1726381715115,7.2629,137.69,137.66,5.78289643]
[1726381715321,7.2629,137.69,137.63,20.25098]
[1726381715632,15.8545,137.7,137.64,5.78264122]
[1726381715839,15.8545,137.7,137.62,11.39286714]
[1726381715840,15.8545,137.7,137.65,5.78264122]
[1726381716024,15.8545,137.7,137.61,35.31595274]
[1726381716339,15.8545,137.7,137.62,9.70697938]
[1726381716550,15.8545,137.7,137.63,5.78389378]
[1726381716738,15.8545,137.7,137.64,5.78389378]
[1726381716940,15.8545,137.7,137.65,5.78389378]
[1726381716941,7.2637,137.67,137.65,5.78389378]
[1726381717138,7.2637,137.67,137.62,27.70025235]
[1726381717341,7.2637,137.67,137.62,23.776884]
[1726381719846,15.8545,137.7,137.62,23.776884]
[1726381720060,7.2643,137.66,137.62,23.776884]
[1726381721551,7.2648,137.65,137.59,11.39286714]
[1726381722062,7.2648,137.65,137.59,15.31806634]
[1726381722248,7.2648,137.65,137.59,15.31794496]
[1726381722759,7.2648,137.65,137.6,24.027864]
[1726381726546,7.2644,137.66,137.6,24.027864]
[1726381731061,7.2644,137.66,137.61,1.45324208]
[1726381731252,7.2644,137.66,137.62,23.776884]
[1726381732071,7.2644,137.66,137.61,23.776884]
[1726381732380,7.2644,137.66,137.61,25.230029]
[1726381735275,7.2644,137.66,137.62,0.12549]
[1726381738479,23.7459,137.67,137.62,0.12549]
[1726381738681,16.4821,137.67,137.63,23.776884]
[1726381739285,16.4821,137.67,137.65,23.776884]
[1726381744190,7.2631,137.69,137.65,23.776884]
[1726381747283,23.7133,137.7,137.65,36.62258451]
[1726381747487,16.4511,137.7,137.67,35.16975114]
[1726381748006,16.4511,137.7,137.67,23.776884]
[1726381754410,16.4511,137.7,137.66,23.776884]
[1726381754716,23.7132,137.7,137.66,23.776884]